[Event "*** Titled Tuesday Blitz"]
[Site "Chess.com"]
[Date "2021.04.20"]
[Round "7"]
[White "SirStrateg"]
[Black "hansen"]
[Result "0-1"]
[WhiteElo "2619"]
[BlackElo "2814"]
[TimeControl "180+1"]
[EndTime "11:15:45 PDT"]
[Termination "hansen won by resignation"]

1. d4 {[%clk 0:03:00.9]} 1... Nf6 {[%clk 0:02:57.8]} 2. Bf4 {[%clk 0:02:58.6]}
2... g6 {[%clk 0:02:57.9]} 3. Nc3 {[%clk 0:02:57.3]} 3... d5 {[%clk 0:02:56.6]}
4. e3 {[%clk 0:02:54.9]} 4... Bg7 {[%clk 0:02:56.3]} 5. Nf3 {[%clk 0:02:55.3]}
5... O-O {[%clk 0:02:55.8]} 6. Be2 {[%clk 0:02:54]} 6... c5 {[%clk 0:02:56]} 7.
Ne5 {[%clk 0:02:53.6]} 7... Nc6 {[%clk 0:02:55.6]} 8. h4 {[%clk 0:02:40.4]} 8...
cxd4 {[%clk 0:02:54.3]} 9. exd4 {[%clk 0:02:39.6]} 9... Qb6 {[%clk 0:02:54.4]}
10. Nxc6 {[%clk 0:02:36.2]} 10... bxc6 {[%clk 0:02:47.5]} 11. Na4 {[%clk
0:02:34.7]} 11... Qa5+ {[%clk 0:02:45.9]} 12. c3 {[%clk 0:02:33.5]} 12... Nd7
{[%clk 0:02:46.6]} 13. O-O {[%clk 0:02:00.2]} 13... e5 {[%clk 0:02:33]} 14. dxe5
{[%clk 0:01:59.8]} 14... Nxe5 {[%clk 0:02:33.4]} 15. Re1 {[%clk 0:01:52.3]}
15... Re8 {[%clk 0:02:30.7]} 16. b4 {[%clk 0:01:40]} 16... Qd8 {[%clk
0:02:28.2]} 17. Bg5 {[%clk 0:01:38.9]} 17... Qd6 {[%clk 0:02:26.3]} 18. Nc5
{[%clk 0:01:32.1]} 18... Bf5 {[%clk 0:02:24.3]} 19. Qb3 {[%clk 0:01:16.3]} 19...
h6 {[%clk 0:02:11.4]} 20. Be3 {[%clk 0:01:14.6]} 20... Qf6 {[%clk 0:02:11]} 21.
h5 {[%clk 0:00:56.5]} 21... gxh5 {[%clk 0:02:02.2]} 22. Bxh5 {[%clk 0:00:41.7]}
22... Bg4 {[%clk 0:02:02.1]} 23. Bxg4 {[%clk 0:00:19.7]} 23... Nxg4 {[%clk
0:02:02.2]} 24. Nd3 {[%clk 0:00:14.3]} 24... Qxc3 {[%clk 0:01:32.9]} 25. Rac1
{[%clk 0:00:13.1]} 25... Qxb3 {[%clk 0:01:26.7]} 26. axb3 {[%clk 0:00:14]} 26...
Nxe3 {[%clk 0:01:27.2]} 27. fxe3 {[%clk 0:00:13.8]} 27... Re6 {[%clk 0:01:10.5]}
28. Rc5 {[%clk 0:00:05.2]} 28... Bf8 {[%clk 0:00:57]} 29. Ra5 {[%clk 0:00:03.7]}
29... Bd6 {[%clk 0:00:57.3]} 30. Kf2 {[%clk 0:00:02.5]} 30... Bc7 {[%clk
0:00:57.7]} 31. Ra6 {[%clk 0:00:02.4]} 31... Bb6 {[%clk 0:00:57.6]} 32. Rc1
{[%clk 0:00:01.5]} 32... Bxe3+ {[%clk 0:00:57.1]} 0-1

[Event "*** Titled Tuesday Blitz"]
[Site "Chess.com"]
[Date "2021.04.20"]
[Round "7"]
[White "Zmof"]
[Black "Valeron87"]
[Result "1-0"]
[WhiteElo "2248"]
[BlackElo "2372"]
[TimeControl "180+1"]
[EndTime "11:15:45 PDT"]
[Termination "Zmof won on time"]

1. e4 {[%clk 0:03:00.3]} 1... c5 {[%clk 0:02:58.9]} 2. Nf3 {[%clk 0:02:59.8]}
2... Nc6 {[%clk 0:02:55.8]} 3. Bb5 {[%clk 0:02:58.6]} 3... e6 {[%clk 0:02:53.9]}
4. Bxc6 {[%clk 0:02:57.3]} 4... bxc6 {[%clk 0:02:54.2]} 5. O-O {[%clk
0:02:56.2]} 5... Qc7 {[%clk 0:02:53.3]} 6. Re1 {[%clk 0:02:55]} 6... e5 {[%clk
0:02:53.1]} 7. c3 {[%clk 0:02:47.7]} 7... d6 {[%clk 0:02:51.3]} 8. d4 {[%clk
0:02:46.1]} 8... cxd4 {[%clk 0:02:48.3]} 9. cxd4 {[%clk 0:02:46.8]} 9... Nf6
{[%clk 0:02:07.7]} 10. Nc3 {[%clk 0:02:44.8]} 10... Be7 {[%clk 0:02:00]} 11. Bg5
{[%clk 0:02:42.2]} 11... O-O {[%clk 0:01:57.7]} 12. Rc1 {[%clk 0:02:41.4]} 12...
Bg4 {[%clk 0:01:21.5]} 13. Bxf6 {[%clk 0:02:38.5]} 13... Bxf6 {[%clk 0:01:20.7]}
14. Nd5 {[%clk 0:02:38.7]} 14... Qd8 {[%clk 0:01:17.3]} 15. Nxf6+ {[%clk
0:02:38]} 15... Qxf6 {[%clk 0:01:16.7]} 16. dxe5 {[%clk 0:02:38.4]} 16... dxe5
{[%clk 0:01:16.2]} 17. h3 {[%clk 0:02:31.8]} 17... Bxf3 {[%clk 0:01:13.2]} 18.
Qxf3 {[%clk 0:02:31.7]} 18... Qxf3 {[%clk 0:01:12.7]} 19. gxf3 {[%clk
0:02:32.4]} 19... Rab8 {[%clk 0:01:10.4]} 20. b3 {[%clk 0:02:30.3]} 20... Rb6
{[%clk 0:00:58.9]} 21. Rc5 {[%clk 0:02:29.6]} 21... f6 {[%clk 0:00:57.3]} 22.
Rec1 {[%clk 0:02:28.8]} 22... Rc8 {[%clk 0:00:54.3]} 23. Kf1 {[%clk 0:02:26]}
23... Kf7 {[%clk 0:00:53.6]} 24. Ke2 {[%clk 0:02:26.1]} 24... Ke7 {[%clk
0:00:52.8]} 25. Ke3 {[%clk 0:02:23.5]} 25... Kd6 {[%clk 0:00:49.2]} 26. f4
{[%clk 0:02:19.4]} 26... exf4+ {[%clk 0:00:41.1]} 27. Kxf4 {[%clk 0:02:19]}
27... a6 {[%clk 0:00:32.3]} 28. Ke3 {[%clk 0:02:09.4]} 28... Rb5 {[%clk
0:00:31.9]} 29. R5c4 {[%clk 0:01:49.3]} 29... Rh5 {[%clk 0:00:30.3]} 30. Rh1
{[%clk 0:01:49.1]} 30... a5 {[%clk 0:00:26.9]} 31. f4 {[%clk 0:01:48.3]} 31...
Re8 {[%clk 0:00:24.9]} 32. Kf3 {[%clk 0:01:43]} 32... Kc7 {[%clk 0:00:22.1]} 33.
Kg4 {[%clk 0:01:42.4]} 33... Rb5 {[%clk 0:00:20.2]} 34. Rhc1 {[%clk 0:01:41.4]}
34... Re6 {[%clk 0:00:18.3]} 35. Rc5 {[%clk 0:01:25.1]} 35... Kb6 {[%clk
0:00:09.7]} 36. Rxb5+ {[%clk 0:01:22.3]} 36... cxb5 {[%clk 0:00:05.6]} 37. Kf5
{[%clk 0:01:22.7]} 37... Rd6 {[%clk 0:00:02.7]} 38. e5 {[%clk 0:01:22.2]} 38...
fxe5 {[%clk 0:00:01.8]} 39. fxe5 {[%clk 0:01:22.2]} 39... Rd2 {[%clk 0:00:02]}
40. e6 {[%clk 0:01:20.2]} 1-0

[Event "*** Titled Tuesday Blitz"]
[Site "Chess.com"]
[Date "2021.04.20"]
[Round "7"]
[White "queen_iryna"]
[Black "sara_khm"]
[Result "0-1"]
[WhiteElo "2368"]
[BlackElo "2544"]
[TimeControl "180+1"]
[EndTime "11:15:47 PDT"]
[Termination "sara_khm won by resignation"]

1. e4 {[%clk 0:03:00.9]} 1... e5 {[%clk 0:02:59.6]} 2. Nf3 {[%clk 0:03:01.1]}
2... Nc6 {[%clk 0:03:00]} 3. Bc4 {[%clk 0:03:01.2]} 3... Bc5 {[%clk 0:02:59.5]}
4. c3 {[%clk 0:03:00.6]} 4... Nf6 {[%clk 0:02:59.8]} 5. d3 {[%clk 0:03:00.1]}
5... d6 {[%clk 0:02:59.9]} 6. O-O {[%clk 0:03:00.3]} 6... a6 {[%clk 0:03:00.3]}
7. a4 {[%clk 0:02:59]} 7... Ba7 {[%clk 0:02:58.2]} 8. Re1 {[%clk 0:02:55.9]}
8... Ng4 {[%clk 0:02:56.8]} 9. Re2 {[%clk 0:02:51.9]} 9... Qf6 {[%clk
0:02:56.9]} 10. Nbd2 {[%clk 0:02:34.3]} 10... Qg6 {[%clk 0:02:54.8]} 11. Nf1
{[%clk 0:02:27.3]} 11... Be6 {[%clk 0:02:50.2]} 12. Bxe6 {[%clk 0:02:23]} 12...
fxe6 {[%clk 0:02:50.1]} 13. d4 {[%clk 0:02:15.4]} 13... O-O {[%clk 0:02:46.8]}
14. Ng3 {[%clk 0:02:06.6]} 14... exd4 {[%clk 0:02:34]} 15. cxd4 {[%clk
0:02:05.8]} 15... Kh8 {[%clk 0:02:32.5]} 16. h3 {[%clk 0:02:03.4]} 16... Nf6
{[%clk 0:02:32]} 17. Nh4 {[%clk 0:01:50]} 17... Qf7 {[%clk 0:02:30.8]} 18. Be3
{[%clk 0:01:43.5]} 18... e5 {[%clk 0:02:17]} 19. Nf3 {[%clk 0:01:39.6]} 19...
exd4 {[%clk 0:02:10.8]} 20. Nxd4 {[%clk 0:01:38.2]} 20... Ne5 {[%clk 0:02:10.7]}
21. Ndf5 {[%clk 0:01:30.7]} 21... Bxe3 {[%clk 0:02:08.5]} 22. Nxe3 {[%clk
0:01:20.6]} 22... Rae8 {[%clk 0:02:05.5]} 23. Rc2 {[%clk 0:01:19]} 23... Ng6
{[%clk 0:02:00.2]} 24. f3 {[%clk 0:01:06.1]} 24... Nf4 {[%clk 0:01:51.1]} 25.
Rac1 {[%clk 0:01:05.5]} 25... Qg6 {[%clk 0:01:49.5]} 26. Ngf5 {[%clk 0:01:01.1]}
26... Nxh3+ {[%clk 0:01:47.4]} 27. Kh2 {[%clk 0:00:56.2]} 27... Nf4 {[%clk
0:01:38.5]} 28. Rxc7 {[%clk 0:00:55.4]} 28... Qh5+ {[%clk 0:01:29]} 29. Kg1
{[%clk 0:00:54.7]} 29... g6 {[%clk 0:00:49.3]} 30. Ng3 {[%clk 0:00:54.4]} 30...
Qg5 {[%clk 0:00:45.2]} 31. Ngf1 {[%clk 0:00:54.1]} 31... d5 {[%clk 0:00:40.4]}
32. Qd4 {[%clk 0:00:26.2]} 32... Ne2+ {[%clk 0:00:39.7]} 0-1

[Event "*** Titled Tuesday Blitz"]
[Site "Chess.com"]
[Date "2021.04.20"]
[Round "7"]
[White "AthanasiusLefebvre"]
[Black "NovikovaGalina"]
[Result "0-1"]
[WhiteElo "2043"]
[BlackElo "2310"]
[TimeControl "180+1"]
[EndTime "11:15:48 PDT"]
[Termination "NovikovaGalina won on time"]

1. Nf3 {[%clk 0:03:00]} 1... d5 {[%clk 0:02:59.5]} 2. d3 {[%clk 0:02:58.7]} 2...
c5 {[%clk 0:02:57.9]} 3. g3 {[%clk 0:02:59]} 3... Nc6 {[%clk 0:02:56.4]} 4. Bg2
{[%clk 0:02:59.5]} 4... Bg4 {[%clk 0:02:56.2]} 5. O-O {[%clk 0:03:00]} 5... Qd7
{[%clk 0:02:55.1]} 6. Re1 {[%clk 0:02:58.8]} 6... Bh3 {[%clk 0:02:54.6]} 7. Bh1
{[%clk 0:02:57.7]} 7... Nf6 {[%clk 0:02:54.5]} 8. c4 {[%clk 0:02:55.1]} 8... e6
{[%clk 0:02:53.9]} 9. cxd5 {[%clk 0:02:46.8]} 9... exd5 {[%clk 0:02:54.8]} 10.
Nc3 {[%clk 0:02:46.6]} 10... Be7 {[%clk 0:02:53.2]} 11. Bf4 {[%clk 0:02:38.8]}
11... O-O {[%clk 0:02:49.6]} 12. e4 {[%clk 0:02:37.2]} 12... d4 {[%clk
0:02:23.8]} 13. Nb5 {[%clk 0:02:27.4]} 13... a6 {[%clk 0:02:20.6]} 14. Na3
{[%clk 0:02:27.1]} 14... b5 {[%clk 0:02:17.6]} 15. Nc2 {[%clk 0:02:02]} 15...
Bg4 {[%clk 0:02:10.9]} 16. Qd2 {[%clk 0:01:58.1]} 16... Rfd8 {[%clk 0:02:06.7]}
17. a4 {[%clk 0:01:50.9]} 17... c4 {[%clk 0:01:54.2]} 18. axb5 {[%clk 0:01:48]}
18... axb5 {[%clk 0:01:53.5]} 19. Rxa8 {[%clk 0:01:46.5]} 19... Rxa8 {[%clk
0:01:54.4]} 20. dxc4 {[%clk 0:01:43.2]} 20... bxc4 {[%clk 0:01:54.2]} 21. Ncxd4
{[%clk 0:01:37.5]} 21... Rd8 {[%clk 0:01:50.8]} 22. Nxc6 {[%clk 0:01:33]} 22...
Qxc6 {[%clk 0:01:48.9]} 23. Ne5 {[%clk 0:01:21]} 23... Qb5 {[%clk 0:01:36.8]}
24. Qc3 {[%clk 0:01:09.4]} 24... Be6 {[%clk 0:01:36.3]} 25. Bg2 {[%clk
0:00:42.6]} 25... h6 {[%clk 0:01:35.9]} 26. Bf1 {[%clk 0:00:39.2]} 26... Bb4
{[%clk 0:01:27.4]} 27. Qe3 {[%clk 0:00:20.1]} 27... Bxe1 {[%clk 0:01:25]} 28.
Qxe1 {[%clk 0:00:14.3]} 28... Qxb2 {[%clk 0:01:21.6]} 29. Nc6 {[%clk 0:00:11]}
29... Re8 {[%clk 0:01:15.7]} 30. Be5 {[%clk 0:00:05.6]} 30... Qc2 {[%clk
0:01:10.8]} 31. Bxf6 {[%clk 0:00:04.6]} 31... gxf6 {[%clk 0:01:11.7]} 32. e5
{[%clk 0:00:03.4]} 32... Bg4 {[%clk 0:01:06.6]} 0-1

[Event "*** Titled Tuesday Blitz"]
[Site "Chess.com"]
[Date "2021.04.20"]
[Round "7"]
[White "Oleksandr_Bortnyk"]
[Black "Hikaru"]
[Result "0-1"]
[WhiteElo "2948"]
[BlackElo "3173"]
[TimeControl "180+1"]
[EndTime "11:15:50 PDT"]
[Termination "Hikaru won by resignation"]

1. e4 {[%clk 0:03:00.9]} 1... c5 {[%clk 0:02:57.3]} 2. c3 {[%clk 0:03:00.4]}
2... d5 {[%clk 0:02:51.3]} 3. exd5 {[%clk 0:03:01.3]} 3... Qxd5 {[%clk
0:02:51.8]} 4. d4 {[%clk 0:03:02]} 4... e6 {[%clk 0:02:51.1]} 5. Be3 {[%clk
0:03:01.9]} 5... cxd4 {[%clk 0:02:50.7]} 6. cxd4 {[%clk 0:03:02.8]} 6... Nf6
{[%clk 0:02:50.7]} 7. Nc3 {[%clk 0:03:03.7]} 7... Qd8 {[%clk 0:02:50.9]} 8. Nf3
{[%clk 0:03:03.3]} 8... Be7 {[%clk 0:02:50.3]} 9. Bd3 {[%clk 0:03:03.9]} 9...
O-O {[%clk 0:02:49.3]} 10. O-O {[%clk 0:03:04.4]} 10... Bd7 {[%clk 0:02:47.3]}
11. Ne5 {[%clk 0:02:57.8]} 11... Bc6 {[%clk 0:02:47.2]} 12. Qe2 {[%clk
0:02:41.6]} 12... Bd5 {[%clk 0:02:39.7]} 13. Nxd5 {[%clk 0:02:39.3]} 13... Nxd5
{[%clk 0:02:38.2]} 14. Bd2 {[%clk 0:02:38.6]} 14... Nd7 {[%clk 0:02:35.5]} 15.
Rac1 {[%clk 0:02:36.4]} 15... Nxe5 {[%clk 0:02:28.5]} 16. dxe5 {[%clk
0:02:34.1]} 16... Qb6 {[%clk 0:02:28]} 17. b3 {[%clk 0:02:27.4]} 17... Rfd8
{[%clk 0:02:21.7]} 18. Rc4 {[%clk 0:02:21]} 18... Rac8 {[%clk 0:02:08.7]} 19.
Rfc1 {[%clk 0:02:09]} 19... Rxc4 {[%clk 0:02:04.7]} 20. Rxc4 {[%clk 0:02:09.9]}
20... Nb4 {[%clk 0:01:32.1]} 21. Bxb4 {[%clk 0:01:05.4]} 21... Bxb4 {[%clk
0:01:33]} 22. Bxh7+ {[%clk 0:01:05.5]} 22... Kxh7 {[%clk 0:01:26]} 23. Qh5+
{[%clk 0:01:04.8]} 23... Kg8 {[%clk 0:01:24.8]} 24. Rh4 {[%clk 0:01:05.7]} 24...
Kf8 {[%clk 0:01:20.4]} 25. g3 {[%clk 0:00:44.5]} 25... Ke8 {[%clk 0:01:06.7]}
26. Rf4 {[%clk 0:00:41.8]} 26... Rd7 {[%clk 0:01:05.9]} 27. h4 {[%clk
0:00:35.7]} 27... Bf8 {[%clk 0:01:03.7]} 28. Rc4 {[%clk 0:00:31.7]} 28... Rc7
{[%clk 0:01:01.3]} 29. Rf4 {[%clk 0:00:31.5]} 29... Rc1+ {[%clk 0:00:58]} 30.
Kh2 {[%clk 0:00:31.1]} 30... Qc7 {[%clk 0:00:58.5]} 31. Qe2 {[%clk 0:00:27.7]}
31... Qc6 {[%clk 0:00:57.2]} 32. Rf3 {[%clk 0:00:24.4]} 32... Rc2 {[%clk
0:00:54.7]} 33. Qd3 {[%clk 0:00:21.4]} 33... Rxa2 {[%clk 0:00:53]} 34. h5 {[%clk
0:00:20.5]} 34... Rd2 {[%clk 0:00:48.8]} 35. Qe3 {[%clk 0:00:16.2]} 35... Bc5
{[%clk 0:00:46.3]} 36. Qf4 {[%clk 0:00:16]} 36... Qxf3 {[%clk 0:00:45.7]} 37.
Qxf3 {[%clk 0:00:15.2]} 37... Rxf2+ {[%clk 0:00:45.3]} 0-1

[Event "*** Titled Tuesday Blitz"]
[Site "Chess.com"]
[Date "2021.04.20"]
[Round "7"]
[White "eduardoperalta"]
[Black "Nuvas"]
[Result "1-0"]
[WhiteElo "2506"]
[BlackElo "2634"]
[TimeControl "180+1"]
[EndTime "11:15:53 PDT"]
[Termination "eduardoperalta won by resignation"]

1. d4 {[%clk 0:03:00.9]} 1... d5 {[%clk 0:02:59.8]} 2. Nf3 {[%clk 0:03:00.3]}
2... Nf6 {[%clk 0:02:59.8]} 3. c4 {[%clk 0:03:00.7]} 3... c6 {[%clk 0:03:00.2]}
4. Nc3 {[%clk 0:03:00.7]} 4... e6 {[%clk 0:03:00.6]} 5. e3 {[%clk 0:02:59.1]}
5... Nbd7 {[%clk 0:03:00.7]} 6. Bd3 {[%clk 0:02:59.4]} 6... dxc4 {[%clk
0:03:00.8]} 7. Bxc4 {[%clk 0:03:00.3]} 7... b5 {[%clk 0:03:01.2]} 8. Bd3 {[%clk
0:03:00.2]} 8... a6 {[%clk 0:03:01.6]} 9. O-O {[%clk 0:03:00.2]} 9... c5 {[%clk
0:03:01.7]} 10. Qe2 {[%clk 0:02:58]} 10... Bb7 {[%clk 0:02:59.9]} 11. Rd1 {[%clk
0:02:56.9]} 11... Qb6 {[%clk 0:02:37.6]} 12. a3 {[%clk 0:02:48]} 12... Be7
{[%clk 0:02:33.7]} 13. Ne5 {[%clk 0:02:23]} 13... Rd8 {[%clk 0:02:12.4]} 14.
Nxd7 {[%clk 0:02:06.7]} 14... Rxd7 {[%clk 0:02:12.1]} 15. dxc5 {[%clk
0:02:06.6]} 15... Bxc5 {[%clk 0:02:11.9]} 16. b4 {[%clk 0:02:06.7]} 16... Qc6
{[%clk 0:02:06.4]} 17. f3 {[%clk 0:02:00.6]} 17... Bb6 {[%clk 0:01:23]} 18. Bb2
{[%clk 0:01:58.6]} 18... Qc8 {[%clk 0:01:05.4]} 19. Rac1 {[%clk 0:01:45.6]}
19... Qa8 {[%clk 0:01:05.3]} 20. Nxb5 {[%clk 0:01:40.3]} 20... axb5 {[%clk
0:01:00.9]} 21. Bxf6 {[%clk 0:01:39.4]} 21... gxf6 {[%clk 0:00:56.2]} 22. Bxb5
{[%clk 0:01:39]} 22... Bd5 {[%clk 0:00:56.9]} 23. Kh1 {[%clk 0:01:33.9]} 23...
Ke7 {[%clk 0:00:26.2]} 24. Bxd7 {[%clk 0:01:31.7]} 24... f5 {[%clk 0:00:26.8]}
25. Bb5 {[%clk 0:01:26.1]} 25... Rg8 {[%clk 0:00:27.2]} 26. Bc4 {[%clk 0:01:22]}
26... Bb7 {[%clk 0:00:25.3]} 27. Rd3 {[%clk 0:01:10.3]} 27... Rc8 {[%clk
0:00:18.5]} 28. Rdc3 {[%clk 0:01:06.4]} 28... Rg8 {[%clk 0:00:16.7]} 29. Rd1
{[%clk 0:00:58.7]} 29... Kf6 {[%clk 0:00:16.9]} 30. Rcd3 {[%clk 0:00:56.6]}
30... Rg6 {[%clk 0:00:16.6]} 31. Qb2+ {[%clk 0:00:56]} 31... Ke7 {[%clk
0:00:13.7]} 32. Rd7+ {[%clk 0:00:55.5]} 32... Kf8 {[%clk 0:00:14.1]} 33. Qh8+
{[%clk 0:00:54.9]} 33... Rg8 {[%clk 0:00:14.4]} 34. Qf6 {[%clk 0:00:49.7]} 1-0

[Event "*** Titled Tuesday Blitz"]
[Site "Chess.com"]
[Date "2021.04.20"]
[Round "7"]
[White "Vuk2000"]
[Black "ljuks68"]
[Result "1-0"]
[WhiteElo "2727"]
[BlackElo "2455"]
[TimeControl "180+1"]
[EndTime "11:15:54 PDT"]
[Termination "Vuk2000 won by resignation"]

1. e4 {[%clk 0:03:00.9]} 1... e6 {[%clk 0:02:59.4]} 2. d4 {[%clk 0:03:01.1]}
2... d5 {[%clk 0:02:59.9]} 3. Nc3 {[%clk 0:03:01.4]} 3... Bb4 {[%clk 0:02:59.3]}
4. exd5 {[%clk 0:02:57.7]} 4... exd5 {[%clk 0:02:59]} 5. Bd3 {[%clk 0:02:57.6]}
5... Nf6 {[%clk 0:02:59.2]} 6. Bg5 {[%clk 0:02:51.1]} 6... O-O {[%clk
0:02:56.2]} 7. Ne2 {[%clk 0:02:50.1]} 7... Bg4 {[%clk 0:02:52.3]} 8. f3 {[%clk
0:02:43.9]} 8... Bh5 {[%clk 0:02:51]} 9. Qd2 {[%clk 0:02:39.7]} 9... Nbd7 {[%clk
0:02:33.5]} 10. O-O-O {[%clk 0:02:34.7]} 10... c6 {[%clk 0:02:33.2]} 11. Nf4
{[%clk 0:02:28.5]} 11... Bg6 {[%clk 0:02:31.7]} 12. Nxg6 {[%clk 0:02:27]} 12...
fxg6 {[%clk 0:02:31.7]} 13. h4 {[%clk 0:02:22.7]} 13... Qa5 {[%clk 0:02:28.7]}
14. a3 {[%clk 0:02:20.3]} 14... Bxc3 {[%clk 0:02:22.5]} 15. Qxc3 {[%clk
0:02:21.2]} 15... Qxc3 {[%clk 0:02:21.3]} 16. bxc3 {[%clk 0:02:22.1]} 16... Rae8
{[%clk 0:02:18.4]} 17. Rde1 {[%clk 0:02:17.9]} 17... Kf7 {[%clk 0:02:16.1]} 18.
Bf4 {[%clk 0:02:13.7]} 18... b5 {[%clk 0:02:13.3]} 19. Bd6 {[%clk 0:02:05.4]}
19... Rxe1+ {[%clk 0:02:12]} 20. Rxe1 {[%clk 0:02:06.3]} 20... Re8 {[%clk
0:02:12.2]} 21. Rxe8 {[%clk 0:02:06]} 21... Kxe8 {[%clk 0:02:12.2]} 22. g4
{[%clk 0:02:04]} 22... a5 {[%clk 0:02:01.2]} 23. a4 {[%clk 0:01:52.2]} 23...
bxa4 {[%clk 0:01:56.2]} 24. Bc7 {[%clk 0:01:51.8]} 24... Ke7 {[%clk 0:01:31.5]}
25. Kb2 {[%clk 0:01:49.9]} 25... c5 {[%clk 0:01:01.7]} 26. Bb5 {[%clk
0:01:46.1]} 26... Ne8 {[%clk 0:00:53.6]} 27. Bxa5 {[%clk 0:01:42.6]} 27... Nd6
{[%clk 0:00:53.4]} 28. Be2 {[%clk 0:01:19.2]} 28... Nc4+ {[%clk 0:00:52.4]} 29.
Bxc4 {[%clk 0:01:18.5]} 29... dxc4 {[%clk 0:00:52.8]} 30. dxc5 {[%clk
0:01:13.4]} 30... Nxc5 {[%clk 0:00:48.6]} 31. Bb4 {[%clk 0:01:11.9]} 31... Kd6
{[%clk 0:00:47.5]} 32. Ka3 {[%clk 0:01:12.4]} 32... Kd5 {[%clk 0:00:35.9]} 33.
Bxc5 {[%clk 0:01:11.7]} 33... Kxc5 {[%clk 0:00:35.9]} 34. Kxa4 {[%clk
0:01:12.2]} 34... h5 {[%clk 0:00:35.8]} 35. g5 {[%clk 0:01:03.5]} 35... Kd5
{[%clk 0:00:34.4]} 36. Kb4 {[%clk 0:01:03.2]} 36... Ke5 {[%clk 0:00:34.9]} 37.
Kxc4 {[%clk 0:01:03]} 37... Kf4 {[%clk 0:00:35.5]} 38. Kd3 {[%clk 0:00:54.8]}
38... Kg3 {[%clk 0:00:36.4]} 39. c4 {[%clk 0:00:54.8]} 39... Kxh4 {[%clk
0:00:36.9]} 40. c5 {[%clk 0:00:54.6]} 40... Kg3 {[%clk 0:00:35.5]} 41. c6 {[%clk
0:00:54.5]} 41... h4 {[%clk 0:00:36]} 42. c7 {[%clk 0:00:53]} 42... h3 {[%clk
0:00:36.6]} 43. c8=Q {[%clk 0:00:52.5]} 43... h2 {[%clk 0:00:37.5]} 44. Qg4+
{[%clk 0:00:52.7]} 1-0

[Event "*** Titled Tuesday Blitz"]
[Site "Chess.com"]
[Date "2021.04.20"]
[Round "7"]
[White "Zkid"]
[Black "Kretov_Evgenij"]
[Result "1-0"]
[WhiteElo "2838"]
[BlackElo "2663"]
[TimeControl "180+1"]
[EndTime "11:15:59 PDT"]
[Termination "Zkid won by checkmate"]

1. d4 {[%clk 0:03:00.9]} 1... Nf6 {[%clk 0:02:59.9]} 2. c4 {[%clk 0:03:01.1]}
2... e6 {[%clk 0:02:57.6]} 3. Nf3 {[%clk 0:02:58.9]} 3... d5 {[%clk 0:02:57.6]}
4. Nc3 {[%clk 0:02:55.2]} 4... Nbd7 {[%clk 0:02:57.5]} 5. cxd5 {[%clk
0:02:52.5]} 5... exd5 {[%clk 0:02:57.7]} 6. Bg5 {[%clk 0:02:52.6]} 6... Be7
{[%clk 0:02:56.8]} 7. e3 {[%clk 0:02:51.3]} 7... c6 {[%clk 0:02:57.1]} 8. Bd3
{[%clk 0:02:51]} 8... Nh5 {[%clk 0:02:57]} 9. h4 {[%clk 0:02:38.8]} 9... Nb6
{[%clk 0:02:46.2]} 10. Ne5 {[%clk 0:02:34.5]} 10... g6 {[%clk 0:02:44.2]} 11.
Bxe7 {[%clk 0:01:56.1]} 11... Qxe7 {[%clk 0:02:44.2]} 12. g4 {[%clk 0:01:55.5]}
12... Ng7 {[%clk 0:02:43.5]} 13. g5 {[%clk 0:01:52.9]} 13... Bf5 {[%clk
0:02:42.1]} 14. f4 {[%clk 0:01:49.2]} 14... h6 {[%clk 0:02:37.1]} 15. Kf2 {[%clk
0:01:43.4]} 15... hxg5 {[%clk 0:02:31]} 16. Bxf5 {[%clk 0:01:40.3]} 16... Nxf5
{[%clk 0:02:28.3]} 17. hxg5 {[%clk 0:01:40.4]} 17... O-O-O {[%clk 0:02:27.3]}
18. Qf3 {[%clk 0:01:19.5]} 18... Kb8 {[%clk 0:02:12.2]} 19. Rxh8 {[%clk
0:01:14.6]} 19... Rxh8 {[%clk 0:02:12.2]} 20. Rh1 {[%clk 0:01:15.5]} 20... Rxh1
{[%clk 0:01:48]} 21. Qxh1 {[%clk 0:01:16.4]} 21... Nc4 {[%clk 0:01:47.2]} 22.
Qh8+ {[%clk 0:01:13.1]} 22... Kc7 {[%clk 0:01:46.7]} 23. Nxc4 {[%clk 0:01:08.8]}
23... dxc4 {[%clk 0:01:45.6]} 24. e4 {[%clk 0:01:04.1]} 24... Nd6 {[%clk
0:01:33.7]} 25. Qe5 {[%clk 0:00:59]} 25... Qd7 {[%clk 0:01:31.3]} 26. d5 {[%clk
0:00:52.3]} 26... c5 {[%clk 0:01:16.7]} 27. a4 {[%clk 0:00:47.1]} 27... Kb6
{[%clk 0:01:12]} 28. Kg3 {[%clk 0:00:41]} 28... Ka5 {[%clk 0:01:09.6]} 29. Qh8
{[%clk 0:00:37.9]} 29... Qe7 {[%clk 0:01:03.8]} 30. e5 {[%clk 0:00:35.8]} 30...
Nf5+ {[%clk 0:01:03.4]} 31. Kf2 {[%clk 0:00:35.5]} 31... Nd4 {[%clk 0:01:02]}
32. Qc8 {[%clk 0:00:32.1]} 32... f5 {[%clk 0:00:53.7]} 33. d6 {[%clk 0:00:27.9]}
33... Qe6 {[%clk 0:00:40.6]} 34. Qxc5+ {[%clk 0:00:24.1]} 34... b5 {[%clk
0:00:38.6]} 35. Qxd4 {[%clk 0:00:19.2]} 35... a6 {[%clk 0:00:37.2]} 36. axb5
{[%clk 0:00:18.7]} 36... axb5 {[%clk 0:00:37.4]} 37. Qa7+ {[%clk 0:00:18.6]}
37... Kb4 {[%clk 0:00:37.1]} 38. Qa3# {[%clk 0:00:19.5]} 1-0

[Event "*** Titled Tuesday Blitz"]
[Site "Chess.com"]
[Date "2021.04.20"]
[Round "7"]
[White "Problematique_99"]
[Black "AEMEffi"]
[Result "1-0"]
[WhiteElo "2503"]
[BlackElo "2331"]
[TimeControl "180+1"]
[EndTime "11:16:00 PDT"]
[Termination "Problematique_99 won by resignation"]

1. Nf3 {[%clk 0:03:00.9]} 1... d5 {[%clk 0:02:58.8]} 2. g3 {[%clk 0:03:00.8]}
2... c6 {[%clk 0:02:59.7]} 3. Bg2 {[%clk 0:03:00.9]} 3... g6 {[%clk 0:03:00.3]}
4. O-O {[%clk 0:03:01.1]} 4... Bg7 {[%clk 0:03:01.2]} 5. c4 {[%clk 0:03:00.3]}
5... Nf6 {[%clk 0:03:02.1]} 6. d4 {[%clk 0:02:58.6]} 6... O-O {[%clk 0:03:00.3]}
7. Qb3 {[%clk 0:02:57.5]} 7... dxc4 {[%clk 0:02:58.1]} 8. Qxc4 {[%clk
0:02:57.7]} 8... Bf5 {[%clk 0:02:51.2]} 9. Nc3 {[%clk 0:02:54.5]} 9... Nbd7
{[%clk 0:02:47]} 10. Re1 {[%clk 0:02:46.7]} 10... Ne4 {[%clk 0:02:37.9]} 11. Nh4
{[%clk 0:02:42.9]} 11... Be6 {[%clk 0:02:21.2]} 12. Qd3 {[%clk 0:02:36.4]} 12...
Nxc3 {[%clk 0:02:17.8]} 13. bxc3 {[%clk 0:02:36.5]} 13... Nb6 {[%clk 0:02:08.1]}
14. e4 {[%clk 0:02:32.2]} 14... Bc4 {[%clk 0:02:06.4]} 15. Qc2 {[%clk
0:02:31.3]} 15... e5 {[%clk 0:01:59.8]} 16. Nf3 {[%clk 0:02:29.5]} 16... exd4
{[%clk 0:01:45.4]} 17. cxd4 {[%clk 0:02:29.4]} 17... Bxd4 {[%clk 0:01:31.7]} 18.
Rd1 {[%clk 0:01:54.5]} 18... Bxa1 {[%clk 0:01:29.1]} 19. Rxd8 {[%clk 0:01:50.9]}
19... Rfxd8 {[%clk 0:01:24.5]} 20. Be3 {[%clk 0:01:51.1]} 20... Bd3 {[%clk
0:01:01.3]} 21. Qc1 {[%clk 0:01:48.7]} 21... Bg7 {[%clk 0:00:57.4]} 22. e5
{[%clk 0:01:45.4]} 22... Nc4 {[%clk 0:00:50.2]} 23. Bg5 {[%clk 0:01:43.5]} 23...
Be2 {[%clk 0:00:20.7]} 24. Nd2 {[%clk 0:01:05.6]} 24... Rxd2 {[%clk 0:00:16.3]}
25. Bxd2 {[%clk 0:01:04.9]} 25... Rd8 {[%clk 0:00:16.9]} 26. Bf1 {[%clk
0:00:53.5]} 26... Bxf1 {[%clk 0:00:15.7]} 27. Bg5 {[%clk 0:00:48.6]} 27... Nd2
{[%clk 0:00:16.6]} 28. Bxd8 {[%clk 0:00:25.7]} 1-0